Cogmind - Beta 13 @@@ ROGUE MODE // 2024.04.22 @ 09:46:12 Player: Haddoc Result: Destroyed by as-05741 with Assembled Blade Performance ------------- Evolutions (0) 0 Regions Visited (2) 400 Robots Destroyed (19) 95 Value Destroyed (543) 543 Prototype IDs (0) 0 Alien Tech Used (0) 0 Bonus (0) 0 TOTAL SCORE: 1038 Bonus ------- None Cogmind --------- Core Integrity 0/250 Matter 300/300 Energy 250/250 System Corruption 1% Temperature Cool (0) Movement Walking (260) Ox2 Location -10/Mines Parts ------- > --- POWER (1) -------- Ion Engine > --- PROPULSION (2) --- Aluminum Leg > --- UTILITY (2) ------ Medium Storage Unit Medium Storage Unit > --- WEAPON (2) ------- Small Laser > --- INVENTORY (10) --- Light Ion Engine Aluminum Leg Aluminum Leg Aluminum Leg Improved Heat Sink Small Battery (100) Medium Matter Pod (100) Structural Scanner Sensor Array Peak State ------------ > --- POWER ------------ Ion Engine > --- PROPULSION ------- Aluminum Leg Aluminum Leg > --- UTILITY ---------- Small Storage Unit Hacking Suite > --- WEAPON ----------- Small Laser Particle Gun > --- INVENTORY -------- Aluminum Leg Aluminum Leg Aluminum Leg Improved Heat Sink Medium Matter Pod Structural Scanner Sensor Array [Rating: 10] Favorites ----------- Power Ion Engine Engine Ion Engine Propulsion Aluminum Leg Treads Light Treads Leg Aluminum Leg Utility Medium Storage Unit Device Sensor Array Storage Medium Storage Unit Hackware Hacking Suite Weapon Small Laser Energy Gun Small Laser Ballistic Gun Light Assault Rifle Special Weapon Mining Laser Build | -11 -10 -10 ------- Run | Yrd Mat Min Slots Evolved . | . . . Power . | . . . Propulsion . | . . . Utility . | . . . Weapon . | . . . Parts Attached 25 | 6 19 . Power 3 | 1 2 . Engine 3 | 1 2 . Core . | . . . Reactor . | . . . Propulsion 8 | 2 6 . Treads 2 | 2 . . Leg 6 | . 6 . Wheel . | . . . Hover . | . . . Flight . | . . . Utility 5 | 1 4 . Device 1 | . 1 . Storage 3 | 1 2 . Processor . | . . . Hackware 1 | . 1 . Protection . | . . . Artifact . | . . . Weapon 9 | 2 7 . Energy Gun 7 | 1 6 . Energy Cannon . | . . . Ballistic Gun 1 | 1 . . Ballistic Cannon . | . . . Launcher . | . . . Special Weapon 1 | . 1 . Impact Weapon . | . . . Slashing Weapon . | . . . Piercing Weapon . | . . . Special Melee Weapon . | . . . Unidentified Prototypes . | . . . Parts Lost 5 | . 3 2 Power 1 | . 1 . Propulsion 1 | . . 1 Utility . | . . . Weapon 3 | . 2 1 Highest Loss Streak 2 | . 2 2 To Critical Strikes . | . . . Average Slot Usage (%) 92 | . 91 100 Engine 13 | . 13 14 Treads 3 | . 4 . Leg 24 | . 23 28 Device 3 | . 3 . Storage 20 | . 19 28 Energy Gun 18 | . 18 14 Ballistic Gun 4 | . 5 . Special Weapon 2 | . 1 14 Naked Turns . | . . . Heaviest Build 28 | 11 28 27 Greatest Support 40 | 40 40 20 Greatest Overweight (x) 2 | 2 1 2 Average Overweight (x) . | 1 . 1 Largest Inventory Capacity 10 | 8 10 10 Average Capacity 8 | 7 8 10 Most Carried 10 | 8 10 9 Average Carried 7 | 7 7 8 Final Capacity 10 | 8 10 10 Final Carried 9 | 4 8 9 Class Distribution -------------------- 92% | Mutant 7% | Scavenger-Mutant Dominant Class ---------------- Mutant | -10/Materials Mutant | -10/Mines Resources | -11 -10 -10 ----------- Run | Yrd Mat Min Matter Collected 486 | 190 290 6 Remotely . | . . . Salvage Created 633 | 9 624 . Parts 33 | . 33 . Haulers Intercepted . | . . . Recyclers Shooed 1 | . 1 . Parts Field Recycled . | . . . Retrieved Matter . | . . . Parts Self-Destructed . | . . . Prevented . | . . . Kills | -11 -10 -10 ------- Run | Yrd Mat Min Combat Hostiles Destroyed 13 | . 13 . Guns 11 | . 11 . AOE 2 | . 2 . Classes Destroyed 6 | 1 5 . Worker 1 | . 1 . Tunneler 1 | 1 . . Recycler 1 | . 1 . Operator 1 | . 1 . Watcher 2 | . 2 . Grunt 13 | . 13 . Best Kill Streak 4 | 1 4 . Combat Bots Only 4 | . 4 . Max Kills in Single Turn 2 | 1 2 . Gunslinging . | . . . Exploded 2 | . 2 . Melee . | . . . Uniques/NPCs Destroyed . | . . . Combat | -11 -10 -10 -------- Run | Yrd Mat Min Hostile Shots Fired 116 | . 100 16 Missed 36 | . 32 4 Damage Taken 1184 | 39 885 260 Core 267 | 25 175 67 Absorbed by Shields . | . . . Core Remaining (%) 90 | 90 . . Volleys Fired 70 | . 69 1 Largest 2 | . 2 2 Hottest 140 | . 140 140 Shots Fired 134 | . 132 2 Gun 128 | . 127 1 Cannon . | . . . Launcher . | . . . Special 6 | . 5 1 Kinetic 55 | . 55 . Thermal 68 | . 66 2 Explosive . | . . . Electromagnetic 11 | . 11 . Robot Hit Streak 26 | . 26 . Robot Miss Streak 8 | . 8 3 Penetration Max . | . . . Secondary Targets 2 | . 2 . Max Gunslinging Chain 1 | . 1 . Shots Hit Robots 78 | . 78 . Core Hits 39 | 3 36 . Critical Kills . | . . . Critical Parts Destroyed . | . . . Critical Strikes 3 | . 3 . Burn 3 | . 3 . Melee Attacks . | . . . Impact . | . . . Slashing . | . . . Piercing . | . . . Sneak Attacks . | . . . Combat Hostiles . | . . . Follow-up Attacks . | . . . Damage Inflicted 1091 | 50 1036 5 Guns 843 | . 843 . Cannons . | . . . Explosions 138 | . 138 . Melee . | . . . Ramming 62 | 50 7 5 Kinetic 300 | . 300 . Thermal 650 | . 650 . Explosive . | . . . Electromagnetic 79 | . 79 . Impact . | . . . Slashing . | . . . Piercing . | . . . Highest Corruption 1 | . . 1 Average Corruption 1 | . . 1 Corruption Purged . | . . . Corruption Blocked . | . . . Overload Shots . | . . . Overflow Damage 6 | . 6 . Projectiles . | . . . Explosions 6 | . 6 . Melee . | . . . Knockbacks . | . . . Impact . | . . . Kinetic . | . . . Secondary . | . . . Self-Inflicted Damage 88 | 17 71 . Shots 2 | . 2 . Rammed 24 | 24 . . Targets Rammed 27 | 25 1 1 Kicked 2 | . 1 1 Crushed 1 | 1 . . Highest Temperature 246 | . 246 40 Average Temperature 76 | . 78 20 Received Heat Transfer 462 | . 462 . Siege Activations . | . . . Robots Corrupted . | . . . Combat Hostiles . | . . . Parts Fried . | . . . Impact Corruptions . | . . . Robots Melted . | . . . Combat Hostiles . | . . . Parts Melted 2 | . 2 . Heat Transferred 1806 | . 1806 . Parts Sabotaged . | . . . Parts Stolen . | . . . Parts Stripped . | . . . Power Chain Reactions 2 | . 2 . Alert | -11 -10 -10 ------- Run | Yrd Mat Min Peak Influence 237 | 5 237 40 Initial 39 | . 3 39 Average 80 | . 101 38 Maximum Alert Level 1 | . 1 . Low Security (%) 97 | 100 97 100 Level 1 2 | . 2 . Level 2 . | . . . Level 3 . | . . . Level 4 . | . . . Level 5 . | . . . High Security . | . . . Max Security . | . . . Squads Dispatched 4 | . 4 . Investigation 2 | . 2 . Extermination . | . . . Reinforcement 2 | . 2 . Assault . | . . . Garrison . | . . . Intercept . | . . . Searches Triggered . | . . . Construction Impeded . | . . . Haulers Reinforced . | . . . Active Scanning Responses . | . . . Cargo Convoy Interrupts . | . . . Stealth | -11 -10 -10 --------- Run | Yrd Mat Min Distress Signals 3 | . 3 . Communications Jammed . | . . . Distress Signals . | . . . Times Spotted 34 | . 26 8 Peak Tracking Total 8 | . 5 8 Tactical Retreats 3 | . 3 . Traps | -11 -10 -10 ------- Run | Yrd Mat Min Traps Triggered 3 | . 3 . Indirectly . | . . . Trap Hack Attempts . | . . . Triggered . | . . . Disarmed . | . . . Reprogrammed . | . . . Reused . | . . . Traps Extracted . | . . . Installed . | . . . Triggered . | . . . Machines | -11 -10 -10 ---------- Run | Yrd Mat Min Machines Disabled . | . . . Max in Single Turn . | . . . Machines Repaired . | . . . Machines Dismantled . | . . . Machines Sabotaged . | . . . Overloaded Fab Kills . | . . . Hacking | -11 -10 -10 --------- Run | Yrd Mat Min Machines Accessed 8 | . 8 . Terminals 7 | . 7 . Fabricators . | . . . Repair Stations . | . . . Recycling Units 1 | . 1 . Scanalyzers . | . . . Garrison Access . | . . . Total Hacks 20 | . 20 . Successful 10 | . 10 . Failed 10 | . 10 . Catastrophic 2 | . 2 . Database Lockouts . | . . . Manual 16 | . 16 . Terminals 19 | . 19 . Fabricators . | . . . Repair Stations . | . . . Recycling Units 1 | . 1 . Scanalyzers . | . . . Garrison Access . | . . . Terminal Hacks 9 | . 9 . Record 1 | . 1 . Part Schematic 6 | . 6 . Branch Access Points 1 | . 1 . Scanalyzer Index 1 | . 1 . Fabricator Hacks . | . . . Repair Station Hacks . | . . . Recycling Unit Hacks 1 | . 1 . Report Inventory 1 | . 1 . Scanalyzer . | . . . Garrison Access Hacks . | . . . Unauthorized Hacks . | . . . Terminals . | . . . Fabricators . | . . . Repair Stations . | . . . Recycling Units . | . . . Scanalyzers . | . . . Garrison Access . | . . . Data Cores Recovered . | . . . Used . | . . . Hacking Detections 8 | . 8 . Full Trace Events 2 | . 2 . Feedback Events . | . . . Feedback Blocked . | . . . Robot Schematics Acquired . | . . . Robots Built . | . . . Authchips . | . . . Time . | . . . Total Robot Build Rating . | . . . Part Schematics Acquired 6 | . 6 . Parts Built . | . . . Authchips . | . . . Time . | . . . Total Part Build Rating . | . . . Parts Repaired . | . . . Time . | . . . Parts Recycled . | . . . Recycled Matter . | . . . Retrieved Matter . | . . . Retrieved Components . | . . . Parts Scanalyzed . | . . . Part Schematics Acquired . | . . . Parts Damaged . | . . . Bothacking | -11 -10 -10 ------------ Run | Yrd Mat Min Used RIF Installer . | . . . Robots Hacked . | . . . Non-combat . | . . . Combat . | . . . Robot Hacks Applied . | . . . Relay Couplers Released . | . . . Fabnet Peak Effective % . | . . . Robots Rewired . | . . . Allies Hacked . | . . . Hacks Repelled . | . . . Allies | -11 -10 -10 -------- Run | Yrd Mat Min Total Allies . | . . . Largest Group . | . . . Highest-Rated Group . | . . . Highest-Rated Ally . | . . . Total Orders . | . . . Ally Attacks . | . . . Total Damage . | . . . Kills . | . . . Allies Corrupted . | . . . Allies Melted . | . . . Intel | -11 -10 -10 ------- Run | Yrd Mat Min Robot Analysis Total . | . . . Derelict Logs Recovered . | . . . Drone Launches . | . . . Drone Recoveries . | . . . Exploration | -11 -10 -10 ------------- Run | Yrd Mat Min Turns Passed 1756 | 292 1343 121 Spaces Moved 912 | 160 694 58 Core 137 | 137 . . Treads 112 | 23 89 . Legs 663 | . 605 58 Wheels . | . . . Hover . | . . . Flight . | . . . Fastest Speed 50 | 50 120 190 Average Speed 151 | 149 148 191 Slowest Speed 260 | 160 190 260 Overloaded Moves . | . . . Propulsion Burnouts . | . . . Robots Hopped . | . . . Cave-ins Triggered . | . . . Exploration Rate (%) 36 | 7 89 14 Regions Visited 2 Branch Regions 1 Pre-discovered Areas . | . . . Known Exits Taken 1 | . 1 . Unknown Exits Taken 1 | 1 . . Scrap Searched 1 | . . 1 Spaces Dug . | . . . Terrain Destroyed 8 | . 7 1 Melee . | . . . Projectile 2 | . 1 1 AOE 6 | . 6 . Terrain Rammed . | . . . Walls Destroyed . | . . . Machines Disabled . | . . . Actions | -11 -10 -10 --------- Run | Yrd Mat Min Total 1144 | 200 881 63 Wait 59 | . 57 2 Move 910 | 159 693 58 Hop . | . . . Pick Up 39 | 10 28 1 Fast Attach . | . . . Attach 24 | 6 18 . Detach . | . . . Swap 1 | . 1 . Drop 14 | . 14 . Fire 70 | . 69 1 Melee . | . . . Ram 21 | 21 . . Kick 2 | . 1 1 Crush 4 | 4 . . Escape Stasis . | . . . Rewire . | . . . Trap . | . . . Miscellaneous . | . . . Route ------- -11/Scrapyard -10/Materials (discovered 3 exits: [*Mat x2] / *Min) -10/Mines History --------- Turn | Location | Event 9 | -11/Scrapyard | Discovered new exit (range 16) 293 | -11/Scrapyard | Entered Materials 313 | -10/Materials | Build established: Mutant 722 | -10/Materials | Core integrity fell below 50% 876 | -10/Materials | Discovered new exit (range 10) 1048 | -10/Materials | Discovered new exit (range 16) 1087 | -10/Materials | Identified exit to Mines 1197 | -10/Materials | Discovered new exit (range 16) 1636 | -10/Materials | Entered Mines 1720 | -10/Mines | Assembled infested the area 1725 | -10/Mines | Assisted by a Guerilla fighting off Assembled 1755 | -10/Mines | Core integrity fell below 20% 1757 | -10/Mines | Destroyed by as-05741 with Assembled Blade Last Messages --------------- 01641_ Acquired 6 matter. 01644_ Acquired Sml. Battery. 01647_ K-01 Serf collects debris. 01679_ Kicked T-07 Excavator. 01686_ K-01 Serf collects debris. 01720_ ALERT: Infestation in the mines, dispatching Demolisher response squad. 01725_ A derelict emerges from the shadows: "You need to get out of here! I've been tracking a group of Assembled to figure out where they're coming from, and they're closing on this area, come on!" 01734_ 0Y-G7K(h): "I'll hold them off! Go on ahead or try to find another way!" 01752_ Mining Laser destroyed. 01752_ System corrupted by crushing effect (+1). 01752_ Knocked back. 01754_ Aluminum Leg destroyed. 01756_ Knocked back. 01757_ HV Slug penetrates Earth. Map ----- +----------------------------------------------------+ | ?????????######### #?????????????????? | | ?????????# # #?????????????????? | | ?????????# """ # #?????????????????? | | ?????????# """ !# #########?????????? | | ?????????# """ [%= #?????????? | | ?????????# ######### #?????????? | | ?????????# """ #???????# #?????????? | | ?????????# """ #???????# #?????????? | | ?????????# """ #???????# #?????????? | | ?????????# #??????## ### #?????? | | ?????????#########??????# #?????? | | ????????????????????????# #### #?????? | | ????????????????????????# #??????????? | | ????????????????????????#%#??????????? | | ????????????????????????# #??????????? | | ??????????????????#???### #??????????? | | ?????????????????? #?## ##?????????? | | ???????# ?????????? ## ##??#?????? | | ???????# #######;# """ ## #?????? | | ???????# """ #?????? | | ???????# =h""" # ##?????? | | ???????## #### ##### ## #??????? | | ???????????????# ????## #??#??????? | | ???????????????#??????## #?????????? | | ???????????????????????# ##?????????? | | ??????????????????????## @#??????????? | | ??????????????????????# a#??????????? | | ??????????????????????# aa#??????????? | | ??????????????????????##a #??????????? | | ???????????????????????# ##?????????? | | ???????????????????????#aa #?????????? | | ???????????????????????## #?????????? | | ???????????????????????#; #?????????? | | ???????????????????????##a##?????????? | | ????????????????????????# #??????????? | | ????????????????????????# ??????????? | | ????????????????????????###??????????? | | ?????????????????????????????????????? | | ?????????????????????????????????????? | | ?????????????????????????????????????? | | ?????????????????????????????????????? | | ?????????????????????????????????????? | | ?????????????????????????????????????? | | ?????????????????????????????????????? | | ?????????????????????????????????????? | | ?????????????????????????????????????? | | ?????????????????????????????????????? | | ?????????????????????????????????????? | | ?????????????????????????????????????? | | ?????????????????????????????????????? | +----------------------------------------------------+ Best States ------------- Heat Dissipation 25 Energy Generation 10 Energy Capacity 250 Matter Stores 300 Matter Capacity 300 Sight Range 16 Robot Scan Range 14 Terrain Scan Density 10 Evasion (%) 55 Recoil Reduction 2 Offensive Hacking 10 Item Schematics ----------------- Med. Storage Unit | -10/Materials | Hacked Lgt. Ion Engine | -10/Materials | Hacked Lgt. Assault Rifle | -10/Materials | Hacked Signal Interpreter | -10/Materials | Hacked Flight Unit | -10/Materials | Hacked Assault Rifle | -10/Materials | Hacked Robot Schematics ------------------ None Fabricated ------------ Nothing Alien Tech Used ----------------- None Achievements -------------- root@ Challenges ------------ None Game ------ Seed ArmoredSpliceJammer Manual? 0 Play Time 00:18:29 Cumulative 25.0 hours Start 2024.04.22 @ 01:26:26 End 2024.04.22 @ 09:46:12 Sessions 2 Manual Loads 0 Difficulty Rogue Special Mode None Game No. 27 Rogue 12 Adventurer 11 Explorer 4 Win Type - Total 1 Types 1/0/0/0/0/0/0/0/0 Lore% 28 Gallery% 31 Achievement% 29 Wizard Run 0 Options --------- Layout 1 ASCII 0 Keyboard 0 Movement Numpad Keybinds 0 Fullscreen 1 Font 20/SmallcapsGlow Map View 54x42 Zoom Use 0% Tactical HUD 1 Map Filters NONE Filters NONE Steam 1 RUN: 4a3919c1-7502-4e40-afb7-eb2f08543419